fUSD/lending_fUSD_20250222
["ID","MTS","AMOUNT","RATE_DAILY","PERIOD"]
[354024114,1740183076054,-822.9,0.00012187,2]
[354024115,1740183076065,-500.0,0.00012187,2]
[354024116,1740183076075,-1076.85,0.00012187,2]
[354024117,1740183076085,-500.0,0.00012187,2]
[354024118,1740183076097,-1766.78,0.00012187,2]
[354024119,1740183076108,-3156.85,0.00012187,2]
[354024120,1740183076117,-732.58,0.00012187,2]
[354024121,1740183076128,-676.08,0.00012187,2]
[354024122,1740183076138,-500.0,0.00012188,2]
[354024123,1740183076147,-500.0,0.00012188,2]
[354024124,1740183076156,-500.0,0.00012188,2]
[354024125,1740183076166,-500.0,0.00012188,2]
[354024126,1740183076175,-500.0,0.00012188,2]
[354024127,1740183076185,-500.0,0.00012188,2]
[354024128,1740183076195,-500.0,0.00012188,2]
[354024129,1740183076204,-500.0,0.00012188,2]
[354024130,1740183076214,-681.97,0.00012188,2]
[354024131,1740183076224,-500.0,0.00012188,2]
[354024132,1740183076233,-500.0,0.00012188,2]
[354024133,1740183076243,-637.87988349,0.00012188,2]
[354024134,1740183076253,-500.0,0.00012188,2]
[354024135,1740183076263,-500.0,0.00012188,2]
[354024136,1740183076273,-264.48,0.00012188,2]
[354024137,1740183076283,-925.32,0.0001219,2]
[354024138,1740183076293,-500.0,0.0001219,2]
[354024139,1740183076303,-981.73,0.0001219,2]
[354024140,1740183076313,-1225.91,0.0001219,2]
[354024141,1740183076322,-1000.0,0.0001219,2]
[354024142,1740183076332,-1219.38,0.0001219,2]
[354024143,1740183076342,-1112.17,0.0001219,2]
[354024144,1740183076351,-1281.07,0.0001219,2]
[354024145,1740183076361,-534.97,0.0001219,2]
[354024146,1740183076371,-1531.07,0.0001219,2]
[354024147,1740183076380,-500.0,0.00012191,2]
[354024148,1740183076390,-158.97787741,0.00012212,2]
[354024149,1740183076401,-500.0,0.00012268,2]
[354024150,1740183076411,-270.553652,0.00012268,2]
[354024151,1740183076421,-500.0,0.00012268,2]
[354024152,1740183076430,-1851.02,0.00012268,2]
[354024153,1740183076440,-500.0,0.00012268,2]
[354024154,1740183076450,-659.88,0.00012268,2]
[354024155,1740183076459,-500.0,0.00012268,2]
[354024156,1740183076469,-500.0,0.00012268,2]
[354024157,1740183076479,-319.961925,0.00012268,2]
[354024158,1740183076491,-500.0,0.00012268,2]
[354024159,1740183076501,-674.0,0.00012268,2]
[354024160,1740183076512,-704.65,0.00012268,2]
[354024161,1740183076522,-662.23,0.00012268,2]
[354024162,1740183076531,-847.59,0.00012268,2]
[354024163,1740183076540,-780.91,0.00012268,2]
[354024164,1740183076550,-1102.75,0.00012268,2]
[354024165,1740183076560,-500.0,0.00012268,2]
[354024166,1740183076569,-546.67,0.00012268,2]
[354024167,1740183076579,-804.86,0.00012268,2]
[354024168,1740183076588,-1329.87,0.00012268,2]
[354024169,1740183076598,-656.74,0.00012268,2]
[354024170,1740183076608,-1147.29,0.00012268,2]
[354024171,1740183076618,-901.63,0.00012268,2]
[354024172,1740183076627,-872.87,0.00012268,2]
[354024173,1740183076638,-500.0,0.00012268,2]
[354024174,1740183076648,-1312.42,0.00012268,2]
[354024175,1740183076658,-2825.2,0.00012268,2]
[354024176,1740183076667,-793.93,0.00012268,2]
[354024177,1740183076681,-207.87,0.00012268,2]
[354024178,1740183076691,-500.0,0.00012268,2]
[354024179,1740183076701,-500.0,0.00012268,2]
[354024180,1740183076710,-500.0,0.00012268,2]
[354024181,1740183076720,-972.62,0.00012268,2]
[354024182,1740183076733,-500.0,0.00012268,2]
[354024183,1740183076743,-1570.12,0.00012268,2]
[354024184,1740183076753,-881.42,0.00012268,2]
[354024185,1740183076763,-1689.55,0.00012268,2]
[354024186,1740183076773,-1867.77,0.00012268,2]
[354024187,1740183076783,-918.01,0.00012268,2]
[354024188,1740183076794,-500.0,0.00012268,2]
[354024189,1740183076805,-1105.42,0.00012268,2]
[354024190,1740183076816,-904.45,0.00012268,2]
[354024191,1740183076826,-1060.54,0.00012268,2]
[354024192,1740183076836,-1773.75,0.00012268,2]
[354024193,1740183076847,-500.0,0.00012268,2]
[354024194,1740183076860,-670.78,0.00012268,2]
[354024195,1740183076870,-1166.03,0.00012268,2]
[354024196,1740183076881,-697.16,0.00012268,2]
[354024197,1740183076891,-500.0,0.00012268,2]
[354024198,1740183077058,-607.72,0.00012268,2]
[354024199,1740183077068,-500.0,0.00012268,2]
[354024200,1740183077078,-618.06,0.00012268,2]
[354024201,1740183077089,-500.0,0.00012269,2]
[354024202,1740183077098,-500.0,0.00012269,2]
[354024203,1740183077108,-500.0,0.00012269,2]
[354024204,1740183077118,-500.0,0.00012269,2]
[354024205,1740183077128,-500.0,0.00012269,2]
[354024206,1740183077137,-500.0,0.00012269,2]
[354024207,1740183077150,-500.0,0.00012269,2]
[354024208,1740183077159,-500.0,0.00012269,2]
[354024209,1740183077169,-500.0,0.00012269,2]
[354024210,1740183077178,-500.0,0.00012269,2]
[354024211,1740183077187,-500.0,0.00012269,2]
[354024212,1740183077196,-500.0,0.00012269,2]
[354024213,1740183077206,-500.0,0.00012269,2]
[354024214,1740183077215,-627.4,0.00012269,2]
[354024215,1740183077224,-500.0,0.00012269,2]
[354024216,1740183077233,-500.0,0.00012269,2]
[354024217,1740183077242,-500.0,0.00012269,2]
[354024218,1740183077251,-500.0,0.00012269,2]
[354024219,1740183077260,-500.0,0.00012269,2]
[354024220,1740183077270,-371.98,0.00012269,2]
[354024221,1740183077279,-500.0,0.00012269,2]
[354024222,1740183077289,-500.0,0.00012269,2]
[354024223,1740183077298,-500.0,0.00012269,2]
[354024224,1740183077307,-500.0,0.00012269,2]
[354024225,1740183077317,-672.25,0.00012269,2]
[354024226,1740183077327,-500.0,0.00012269,2]
[354024227,1740183077336,-604.62,0.00012269,2]
[354024228,1740183077345,-914.39,0.00012269,2]
[354024229,1740183077354,-740.85,0.00012269,2]
[354024230,1740183077363,-746.87,0.00012269,2]
[354024231,1740183077373,-500.0,0.00012269,2]
[354024232,1740183077383,-500.0,0.00012269,2]
[354024233,1740183077392,-695.9,0.00012269,2]
[354024234,1740183077401,-500.0,0.00012269,2]
[354024235,1740183077411,-500.0,0.00012269,2]
[354024236,1740183077422,-1020.33,0.00012269,2]
[354024237,1740183077431,-500.0,0.00012269,2]
[354024238,1740183077441,-500.0,0.00012269,2]
[354024239,1740183077451,-507.16,0.00012269,2]
[354024240,1740183077462,-795.59,0.00012269,2]
[354024241,1740183077472,-500.0,0.00012269,2]
[354024242,1740183077482,-669.24,0.00012269,2]
[354024243,1740183077491,-500.0,0.00012269,2]
[354024244,1740183077502,-1119.15,0.00012269,2]
[354024245,1740183077513,-543.65,0.00012269,2]
[354024246,1740183077523,-696.77,0.00012269,2]
[354024247,1740183077533,-515.61,0.00012269,2]
[354024248,1740183077542,-500.0,0.00012269,2]
[354024249,1740183077553,-680.03,0.00012269,2]
[354024250,1740183077564,-1539.36,0.00012269,2]
[354024251,1740183077574,-500.0,0.00012269,2]
[354024252,1740183077584,-500.0,0.00012269,2]
[354024253,1740183077594,-1475.55,0.00012269,2]
[354024254,1740183077604,-500.0,0.00012269,2]
[354024255,1740183077613,-822.9,0.00012269,2]
[354024256,1740183077623,-500.0,0.00012269,2]
[354024257,1740183077633,-1076.85,0.00012269,2]
[354024258,1740183077643,-500.0,0.00012269,2]
[354024259,1740183077654,-1766.78,0.00012269,2]
[354024260,1740183077664,-3156.85,0.00012269,2]
[354024261,1740183077674,-732.58,0.00012269,2]
[354024262,1740183077684,-676.08,0.00012269,2]
[354024263,1740183077693,-500.0,0.0001227,2]
[354024264,1740183077702,-500.0,0.0001227,2]
[354024265,1740183077711,-500.0,0.0001227,2]
[354024266,1740183077722,-500.0,0.0001227,2]
[354024267,1740183077732,-500.0,0.0001227,2]
[354024268,1740183077742,-500.0,0.0001227,2]
[354024269,1740183077753,-500.0,0.0001227,2]
[354024270,1740183077764,-500.0,0.0001227,2]
[354024271,1740183077773,-681.97,0.0001227,2]
[354024272,1740183077783,-500.0,0.0001227,2]
[354024273,1740183077792,-446.64,0.0001227,2]
[354024274,1740183077801,-500.0,0.0001227,2]
[354024275,1740183077811,-500.0,0.0001227,2]
[354024276,1740183077820,-500.0,0.00012273,2]
[354024277,1740183077829,-3229.86766,0.00012273,2]
[354024278,1740183077838,-925.32,0.00012273,2]
[354024279,1740183077847,-500.0,0.00012273,2]
[354024280,1740183077856,-981.73,0.00012273,2]
[354024281,1740183077866,-1225.91,0.00012273,2]
[354024282,1740183077875,-1000.0,0.00012273,2]
[354024283,1740183077884,-1219.38,0.00012273,2]
[354024284,1740183077893,-1112.17,0.00012273,2]
[354024285,1740183077903,-1281.07,0.00012273,2]
[354024286,1740183077912,-534.97,0.00012273,2]
[354024287,1740183077921,-1531.07,0.00012273,2]
[354024288,1740183077931,-500.0,0.0001235,2]
[354024289,1740183077940,-270.553652,0.0001235,2]
[354024290,1740183077950,-500.0,0.0001235,2]
[354024291,1740183077959,-1851.02,0.0001235,2]
[354024292,1740183077969,-240.59,0.0001235,2]
[354024293,1740183077979,-659.88,0.0001235,2]
[354024294,1740183077988,-500.0,0.0001235,2]
[354024295,1740183077998,-500.0,0.0001235,2]
[354024296,1740183078007,-319.961925,0.0001235,2]
[354024297,1740183078019,-500.0,0.0001235,2]
[354024298,1740183078030,-674.0,0.0001235,2]
[354024299,1740183078040,-704.65,0.0001235,2]
[354024300,1740183078050,-662.23,0.0001235,2]
[354024301,1740183078061,-847.59,0.0001235,2]
[354024302,1740183078070,-780.91,0.0001235,2]
[354024303,1740183078080,-1102.75,0.0001235,2]
[354024304,1740183078090,-500.0,0.0001235,2]
[354024305,1740183078100,-546.67,0.0001235,2]
[354024306,1740183078110,-804.86,0.0001235,2]
[354024307,1740183078119,-1329.87,0.0001235,2]
[354024308,1740183078128,-656.74,0.0001235,2]
[354024309,1740183078138,-1147.29,0.0001235,2]
[354024310,1740183078148,-901.63,0.0001235,2]
[354024311,1740183078158,-872.87,0.0001235,2]
[354024312,1740183078167,-500.0,0.0001235,2]
[354024313,1740183078177,-1312.42,0.0001235,2]
[354024314,1740183078186,-2825.2,0.0001235,2]
[354024315,1740183078196,-793.93,0.0001235,2]
[354024316,1740183078206,-500.0,0.0001235,2]
[354024317,1740183078215,-500.0,0.0001235,2]
[354024318,1740183078225,-972.62,0.0001235,2]
[354024319,1740183078235,-500.0,0.0001235,2]
[354024320,1740183078245,-1570.12,0.0001235,2]
[354024321,1740183078255,-881.42,0.0001235,2]
[354024322,1740183078266,-1689.55,0.0001235,2]
[354024323,1740183078276,-1867.77,0.0001235,2]
[354024324,1740183078286,-918.01,0.0001235,2]
[354024325,1740183078296,-500.0,0.0001235,2]
[354024326,1740183078306,-1105.42,0.0001235,2]
[354024327,1740183078316,-904.45,0.0001235,2]
[354024328,1740183078327,-1060.54,0.0001235,2]
[354024329,1740183078337,-1773.75,0.0001235,2]
[354024330,1740183078347,-500.0,0.0001235,2]
[354024331,1740183078357,-670.78,0.0001235,2]
[354024332,1740183078368,-1166.03,0.0001235,2]
[354024333,1740183078378,-697.16,0.0001235,2]
[354024334,1740183078387,-500.0,0.0001235,2]
[354024335,1740183078398,-607.72,0.0001235,2]
[354024336,1740183078408,-321.13,0.0001235,2]
[354024337,1740183078418,-618.06,0.0001235,2]
[354024338,1740183078427,-500.0,0.00012351,2]
[354024339,1740183078437,-283.79,0.00012351,2]
[354024340,1740183078447,-500.0,0.00012351,2]
[354024341,1740183078456,-599.13,0.00012351,2]
[354024342,1740183078465,-500.0,0.00012351,2]
[354024343,1740183078475,-598.28,0.00012351,2]
[354024344,1740183078485,-500.0,0.00012351,2]
[354024345,1740183078494,-213.52,0.00012351,2]
[354024346,1740183078504,-500.0,0.00012351,2]
[354024347,1740183078515,-500.0,0.00012351,2]
[354024348,1740183078525,-500.0,0.00012351,2]
[354024349,1740183078533,-166.83,0.00012351,2]
[354024350,1740183078542,-500.0,0.00012351,2]
[354024351,1740183078551,-473.6,0.00012351,2]
[354024352,1740183078560,-500.0,0.00012351,2]
[354024353,1740183078569,-500.0,0.00012351,2]
[354024354,1740183078578,-500.0,0.00012351,2]
[354024355,1740183078587,-500.0,0.00012351,2]
[354024356,1740183078596,-500.0,0.00012351,2]
[354024357,1740183078605,-500.0,0.00012351,2]
[354024358,1740183078614,-500.0,0.00012351,2]
[354024359,1740183078623,-500.0,0.00012351,2]
[354024360,1740183078632,-672.25,0.00012351,2]
[354024361,1740183078641,-500.0,0.00012351,2]
[354024362,1740183078651,-604.62,0.00012351,2]
[354024363,1740183078660,-914.39,0.00012351,2]
[354024364,1740183078669,-740.85,0.00012351,2]
[354024365,1740183078677,-746.87,0.00012351,2]
[354024366,1740183078686,-185.59,0.00012351,2]
[354024367,1740183078695,-500.0,0.00012351,2]
[354024368,1740183078705,-695.9,0.00012351,2]
[354024369,1740183078713,-500.0,0.00012351,2]
[354024370,1740183078724,-500.0,0.00012351,2]
[354024371,1740183078734,-1020.33,0.00012351,2]
[354024372,1740183078744,-500.0,0.00012351,2]
[354024373,1740183078754,-500.0,0.00012351,2]
[354024374,1740183078764,-507.16,0.00012351,2]
[354024375,1740183078774,-795.59,0.00012351,2]
[354024376,1740183078783,-500.0,0.00012351,2]
[354024377,1740183078793,-669.24,0.00012351,2]
[354024378,1740183078803,-216.0,0.00012351,2]
[354024379,1740183078812,-1119.15,0.00012351,2]
[354024380,1740183078821,-543.65,0.00012351,2]
[354024381,1740183078831,-696.77,0.00012351,2]
[354024382,1740183078840,-515.61,0.00012351,2]
[354024383,1740183078849,-500.0,0.00012351,2]
[354024384,1740183078858,-680.03,0.00012351,2]
[354024385,1740183078868,-1539.36,0.00012351,2]
[354024386,1740183078878,-500.0,0.00012351,2]
[354024387,1740183078888,-500.0,0.00012351,2]
[354024388,1740183078897,-1475.55,0.00012351,2]
[354024389,1740183078906,-574.52,0.00012351,2]
[354024390,1740183078915,-822.9,0.00012351,2]
[354024391,1740183078925,-335.81,0.00012351,2]
[354024392,1740183078935,-1076.85,0.00012351,2]
[354024393,1740183078944,-500.0,0.00012351,2]
[354024394,1740183078954,-1766.78,0.00012351,2]
[354024395,1740183078963,-3156.85,0.00012351,2]
[354024396,1740183078973,-732.58,0.00012351,2]
[354024397,1740183078983,-676.08,0.00012351,2]
[354024398,1740183078992,-500.0,0.00012352,2]
[354024399,1740183079002,-500.0,0.00012352,2]
[354024400,1740183079012,-500.0,0.00012352,2]
[354024401,1740183079024,-453.41,0.00012352,2]
[354024402,1740183079033,-500.0,0.00012352,2]
[354024403,1740183079043,-286.56,0.00012352,2]
[354024404,1740183079053,-500.0,0.00012352,2]
[354024405,1740183079063,-500.0,0.00012352,2]
[354024406,1740183079072,-681.97,0.00012352,2]
[354024407,1740183079082,-500.0,0.00012352,2]
[354024408,1740183079092,-328.46449084,0.00012352,2]
[354024409,1740183079102,-500.0,0.00012352,2]
[354024410,1740183079111,-500.0,0.00012355,2]
[354024411,1740183079120,-925.32,0.00012355,2]
[354024412,1740183079130,-500.0,0.00012355,2]
[354024413,1740183079139,-981.73,0.00012355,2]
[354024414,1740183079148,-1225.91,0.00012355,2]
[354024415,1740183079158,-1000.0,0.00012355,2]
[354024416,1740183079167,-1219.38,0.00012355,2]
[354024417,1740183079176,-1112.17,0.00012355,2]
[354024418,1740183079186,-1281.07,0.00012355,2]
[354024419,1740183079195,-534.97,0.00012355,2]
[354024420,1740183079205,-1531.07,0.00012355,2]
[354024421,1740183079215,-500.0,0.00012432,2]
[354024422,1740183079224,-270.553652,0.00012432,2]
[354024423,1740183079234,-500.0,0.00012432,2]
[354024424,1740183079244,-1851.02,0.00012432,2]
[354024425,1740183079253,-659.88,0.00012432,2]
[354024426,1740183079263,-500.0,0.00012432,2]
[354024427,1740183079272,-420.11,0.00012432,2]
[354024428,1740183079282,-319.961925,0.00012432,2]
[354024429,1740183079292,-500.0,0.00012432,2]
[354024430,1740183079302,-674.0,0.00012432,2]
[354024431,1740183079312,-704.65,0.00012432,2]
[354024432,1740183079322,-662.23,0.00012432,2]
[354024433,1740183079331,-847.59,0.00012432,2]
[354024434,1740183079349,-780.91,0.00012432,2]
[354024435,1740183079359,-1102.75,0.00012432,2]
[354024436,1740183079368,-500.0,0.00012432,2]
[354024437,1740183079377,-546.67,0.00012432,2]
[354024438,1740183079387,-804.86,0.00012432,2]
[354024439,1740183079396,-1329.87,0.00012432,2]
[354024440,1740183079406,-656.74,0.00012432,2]
[354024441,1740183079415,-1147.29,0.00012432,2]
[354024442,1740183079426,-901.63,0.00012432,2]
[354024443,1740183079435,-872.87,0.00012432,2]
[354024444,1740183079445,-500.0,0.00012432,2]
[354024445,1740183079455,-1312.42,0.00012432,2]
[354024446,1740183079465,-2825.2,0.00012432,2]
[354024447,1740183079474,-793.93,0.00012432,2]
[354024448,1740183079483,-500.0,0.00012432,2]
[354024449,1740183079492,-500.0,0.00012432,2]
[354024450,1740183079502,-972.62,0.00012432,2]
[354024451,1740183079511,-500.0,0.00012432,2]
[354024452,1740183079521,-1570.12,0.00012432,2]
[354024453,1740183079530,-881.42,0.00012432,2]
[354024454,1740183079540,-1689.55,0.00012432,2]
[354024455,1740183079550,-1867.77,0.00012432,2]
[354024456,1740183079560,-918.01,0.00012432,2]
[354024457,1740183079570,-500.0,0.00012432,2]
[354024458,1740183079579,-1105.42,0.00012432,2]
[354024459,1740183079589,-904.45,0.00012432,2]
[354024460,1740183079598,-1060.54,0.00012432,2]
[354024461,1740183079609,-1773.75,0.00012432,2]
[354024462,1740183079618,-500.0,0.00012432,2]
[354024463,1740183079628,-670.78,0.00012432,2]
[354024464,1740183079637,-1166.03,0.00012432,2]
[354024465,1740183079648,-697.16,0.00012432,2]
[354024466,1740183079657,-500.0,0.00012432,2]
[354024467,1740183079667,-607.72,0.00012432,2]
[354024468,1740183079677,-618.06,0.00012432,2]
[354024469,1740183079687,-500.0,0.00012433,2]
[354024470,1740183079696,-500.0,0.00012433,2]
[354024471,1740183079706,-500.0,0.00012433,2]
[354024472,1740183079715,-500.0,0.00012433,2]
[354024473,1740183079724,-381.98,0.00012433,2]
[354024474,1740183079734,-601.2,0.00012433,2]
[354024475,1740183079743,-443.87,0.00012433,2]
[354024476,1740183079753,-500.0,0.00012433,2]
[354024477,1740183079762,-500.0,0.00012433,2]
[354024478,1740183079772,-500.0,0.00012433,2]
[354024479,1740183079781,-500.0,0.00012433,2]
[354024480,1740183079791,-500.0,0.00012433,2]
[354024481,1740183079800,-500.0,0.00012433,2]
[354024482,1740183079810,-500.0,0.00012433,2]
[354024483,1740183079819,-398.92,0.00012433,2]
[354024484,1740183079828,-500.0,0.00012433,2]
[354024485,1740183079837,-672.25,0.00012433,2]
[354024486,1740183079846,-500.0,0.00012433,2]
[354024487,1740183079856,-604.62,0.00012433,2]
[354024488,1740183079865,-914.39,0.00012433,2]
[354024489,1740183079874,-740.85,0.00012433,2]
[354024490,1740183079885,-746.87,0.00012433,2]
[354024491,1740183079894,-500.0,0.00012433,2]
[354024492,1740183079903,-695.9,0.00012433,2]
[354024493,1740183079914,-500.0,0.00012433,2]
[354024494,1740183079924,-500.0,0.00012433,2]
[354024495,1740183079934,-1020.33,0.00012433,2]
[354024496,1740183079943,-500.0,0.00012433,2]
[354024497,1740183079953,-500.0,0.00012433,2]
[354024498,1740183079962,-507.16,0.00012433,2]
[354024499,1740183079971,-795.59,0.00012433,2]
[354024500,1740183079981,-500.0,0.00012433,2]
[354024501,1740183079990,-669.24,0.00012433,2]
[354024502,1740183079999,-1119.15,0.00012433,2]
[354024503,1740183080008,-543.65,0.00012433,2]
[354024504,1740183080022,-696.77,0.00012433,2]
[354024505,1740183080032,-515.61,0.00012433,2]
[354024506,1740183080041,-500.0,0.00012433,2]
[354024507,1740183080050,-680.03,0.00012433,2]
[354024508,1740183080060,-1539.36,0.00012433,2]
[354024509,1740183080070,-500.0,0.00012433,2]
[354024510,1740183080079,-500.0,0.00012433,2]
[354024511,1740183080089,-1475.55,0.00012433,2]
[354024512,1740183080100,-822.9,0.00012433,2]
[354024513,1740183080132,-1076.85,0.00012433,2]
[354024514,1740183080142,-388.3,0.00012433,2]
[354024515,1740183080152,-1766.78,0.00012433,2]
[354024516,1740183080161,-3156.85,0.00012433,2]
[354024517,1740183080170,-732.58,0.00012433,2]
[354024518,1740183080180,-676.08,0.00012433,2]
[354024519,1740183080191,-500.0,0.00012435,2]
[354024520,1740183080201,-429.44,0.00012435,2]
[354024521,1740183080210,-534.48,0.00012435,2]
[354024522,1740183080219,-500.0,0.00012435,2]
[354024523,1740183080229,-500.0,0.00012435,2]
[354024524,1740183080239,-500.0,0.00012435,2]
[354024525,1740183080248,-681.97,0.00012435,2]
[354024526,1740183080257,-500.0,0.00012435,2]
[354024527,1740183080267,-500.0,0.00012435,2]
[354024528,1740183080276,-500.0,0.00012437,2]
[354024529,1740183080285,-925.32,0.00012437,2]
[354024530,1740183080294,-500.0,0.00012437,2]
[354024531,1740183080303,-981.73,0.00012437,2]
[354024532,1740183080312,-1225.91,0.00012437,2]
[354024533,1740183080322,-1000.0,0.00012437,2]
[354024534,1740183080332,-1219.38,0.00012437,2]
[354024535,1740183080341,-1112.17,0.00012437,2]
[354024536,1740183080350,-1281.07,0.00012437,2]
[354024537,1740183080541,-534.97,0.00012437,2]
[354024538,1740183080551,-1531.07,0.00012437,2]
[354024539,1740183080560,-649.21505152,0.00012499,2]
[354024540,1740183080570,-158.97787741,0.0001251,2]
[354024541,1740183080579,-500.0,0.00012514,2]
[354024542,1740183080588,-270.553652,0.00012514,2]
[354024543,1740183080597,-500.0,0.00012514,2]
[354024544,1740183080606,-1851.02,0.00012514,2]
[354024545,1740183080615,-659.88,0.00012514,2]
[354024546,1740183080624,-500.0,0.00012514,2]
[354024547,1740183080633,-319.961925,0.00012514,2]
[354024548,1740183080642,-500.0,0.00012514,2]
[354024549,1740183080652,-674.0,0.00012514,2]
[354024550,1740183080661,-704.65,0.00012514,2]
[354024551,1740183080670,-662.23,0.00012514,2]
[354024552,1740183080679,-847.59,0.00012514,2]
[354024553,1740183080688,-780.91,0.00012514,2]
[354024554,1740183080697,-1102.75,0.00012514,2]
[354024555,1740183080706,-500.0,0.00012514,2]
[354024556,1740183080715,-546.67,0.00012514,2]
[354024557,1740183080726,-804.86,0.00012514,2]
[354024558,1740183080736,-1329.87,0.00012514,2]
[354024559,1740183080745,-656.74,0.00012514,2]
[354024560,1740183080754,-1147.29,0.00012514,2]
[354024561,1740183080763,-901.63,0.00012514,2]
[354024562,1740183080772,-872.87,0.00012514,2]
[354024563,1740183080782,-500.0,0.00012514,2]
[354024564,1740183080793,-1312.42,0.00012514,2]
[354024565,1740183080804,-2825.2,0.00012514,2]
[354024566,1740183080815,-793.93,0.00012514,2]
[354024567,1740183080824,-500.0,0.00012514,2]
[354024568,1740183080833,-500.0,0.00012514,2]
[354024569,1740183080843,-972.62,0.00012514,2]
[354024570,1740183080852,-500.0,0.00012514,2]
[354024571,1740183080861,-1570.12,0.00012514,2]
[354024572,1740183080871,-881.42,0.00012514,2]
[354024573,1740183080880,-1689.55,0.00012514,2]
[354024574,1740183080889,-1867.77,0.00012514,2]
[354024575,1740183080899,-918.01,0.00012514,2]
[354024576,1740183080908,-500.0,0.00012514,2]
[354024577,1740183080919,-1105.42,0.00012514,2]
[354024578,1740183080928,-904.45,0.00012514,2]
[354024579,1740183080938,-1060.54,0.00012514,2]
[354024580,1740183080948,-1773.75,0.00012514,2]
[354024581,1740183080958,-500.0,0.00012514,2]
[354024582,1740183080968,-670.78,0.00012514,2]
[354024583,1740183080978,-1166.03,0.00012514,2]
[354024584,1740183080988,-697.16,0.00012514,2]
[354024585,1740183080997,-500.0,0.00012514,2]
[354024586,1740183081010,-607.72,0.00012514,2]
[354024587,1740183081027,-618.06,0.00012514,2]
[354024588,1740183081038,-500.0,0.00012515,2]
[354024589,1740183081049,-500.0,0.00012515,2]
[354024590,1740183081061,-500.0,0.00012515,2]
[354024591,1740183081071,-500.0,0.00012515,2]
[354024592,1740183081080,-500.0,0.00012515,2]
[354024593,1740183081089,-500.0,0.00012515,2]
[354024594,1740183081100,-495.0,0.00012515,2]
[354024595,1740183081110,-500.0,0.00012515,2]
[354024596,1740183081119,-500.0,0.00012515,2]
[354024597,1740183081128,-500.0,0.00012515,2]
[354024598,1740183081137,-500.0,0.00012515,2]
[354024599,1740183081146,-500.0,0.00012515,2]
[354024600,1740183081156,-672.25,0.00012515,2]
[354024601,1740183081166,-500.0,0.00012515,2]
[354024602,1740183081175,-604.62,0.00012515,2]
[354024603,1740183081185,-914.39,0.00012515,2]
[354024604,1740183081194,-740.85,0.00012515,2]
[354024605,1740183081203,-746.87,0.00012515,2]
[354024606,1740183081213,-500.0,0.00012515,2]
[354024607,1740183081222,-695.9,0.00012515,2]
[354024608,1740183081232,-500.0,0.00012515,2]
[354024609,1740183081242,-500.0,0.00012515,2]
[354024610,1740183081252,-1020.33,0.00012515,2]
[354024611,1740183081261,-500.0,0.00012515,2]
[354024612,1740183081270,-268.24,0.00012515,2]
[354024613,1740183081280,-507.16,0.00012515,2]